fUST/lending_fUST_20250731
["ID","MTS","AMOUNT","RATE_DAILY","PERIOD"]
[376390086,1753960267168,-214.000274,0.00026,7]
[376390087,1753960267177,-159.734696,0.00026,7]
[376390088,1753960267186,-186.834768,0.00026,7]
[376390089,1753960267195,-151.0,0.00026,7]
[376390090,1753960267204,-380.067796,0.00026,7]
[376390091,1753960267213,-380.067796,0.00026,7]
[376390092,1753960267222,-526.848153,0.00026,3]
[376390093,1753960267231,-151.0,0.00026,7]
[376390094,1753960267241,-151.0,0.00026,7]
[376390095,1753960267253,-151.0,0.00026,7]
[376390096,1753960267262,-312.16666667,0.00026,3]
[376390097,1753960267271,-312.16666667,0.00026,7]
[376390098,1753960267281,-521.0,0.00026028,2]
[376390099,1753960267290,-40011.92,0.000261,12]
[376390100,1753960267299,-2202.85,0.000261,7]
[376390101,1753960267308,-150.0,0.0002613,2]
[376390102,1753960267319,-151.664134,0.00026146,2]
[376390103,1753960267338,-150.429755,0.00026146,2]
[376390104,1753960267347,-150.429748,0.00026146,2]
[376390105,1753960267356,-150.429748,0.00026146,2]
[376390106,1753960267365,-151.0,0.00026162,7]
[376390107,1753960267374,-160.0,0.00026168,4]
[376390108,1753960267383,-160.0,0.00026168,5]
[376390109,1753960267392,-206.0,0.0002617,2]
[376390110,1753960267403,-2267.41107307,0.00026176,14]
[376390111,1753960267412,-612.57768009,0.00026178,2]
[376390112,1753960267421,-200.0,0.00026179,30]
[376390113,1753960267430,-200.0,0.00026179,30]
[376390114,1753960267440,-216.18812866,0.0002618,3]
[376390115,1753960267449,-2192.45,0.00026193,7]
[376390116,1753960267459,-4000.0,0.000262,5]
[376390117,1753960267469,-2192.45,0.00026293,7]
[376390118,1753960267479,-521.0,0.00026302,2]
[376390119,1753960267489,-523.87,0.00026347,2]
[376390120,1753960267498,-635.0,0.00026347,2]
[376390121,1753960267509,-407.0,0.00026348,2]
[376390122,1753960267518,-500.0,0.0002636,2]
[376390123,1753960267527,-500.0,0.00026367,2]
[376390124,1753960267536,-151.664134,0.00026388,14]
[376390125,1753960267546,-2192.45,0.00026393,7]
[376390126,1753960267649,-1553.54,0.000264,7]
[376390127,1753960267659,-15238.62,0.000264,7]
[376390128,1753960267669,-186.425955,0.000264,7]
[376390129,1753960267678,-186.425955,0.000264,7]
[376390130,1753960267688,-151.0,0.000264,7]
[376390131,1753960267698,-2267.41107307,0.00026417,15]
[376390132,1753960267707,-500.0,0.00026425,2]
[376390133,1753960267716,-500.0,0.00026427,2]
[376390134,1753960267725,-818.4986549,0.00026448,2]
[376390135,1753960267734,-200.0,0.00026468,120]
[376390136,1753960267743,-151.0,0.00026479,7]
[376390137,1753960267753,-151.0,0.00026484,7]
[376390138,1753960267763,-151.0,0.0002649,7]
[376390139,1753960267772,-151.0,0.0002649,7]
[376390140,1753960267785,-151.0,0.0002649,7]
[376390141,1753960267794,-151.0,0.0002649,7]
[376390142,1753960267804,-151.0,0.0002649,7]
[376390143,1753960267813,-151.0,0.0002649,7]
[376390144,1753960267824,-299.632594,0.0002649,7]
[376390145,1753960267833,-299.632594,0.0002649,7]
[376390146,1753960267842,-299.632594,0.0002649,7]
[376390147,1753960267853,-299.632594,0.0002649,7]
[376390148,1753960267862,-299.632594,0.0002649,7]
[376390149,1753960267871,-299.632594,0.0002649,7]
[376390150,1753960267881,-299.632594,0.0002649,7]
[376390151,1753960267890,-299.632594,0.0002649,7]
[376390152,1753960267899,-151.0,0.0002649,7]
[376390153,1753960267909,-151.0,0.0002649,7]
[376390154,1753960267918,-299.632594,0.0002649,7]
[376390155,1753960267927,-299.632594,0.0002649,7]
[376390156,1753960267936,-299.632594,0.0002649,7]
[376390157,1753960267945,-151.0,0.0002649,7]
[376390158,1753960267955,-299.632594,0.0002649,7]
[376390159,1753960267964,-151.0,0.0002649,7]
[376390160,1753960267973,-299.632594,0.0002649,7]
[376390161,1753960267983,-299.632594,0.0002649,7]
[376390162,1753960267991,-299.632594,0.0002649,7]
[376390163,1753960268001,-299.6326,0.0002649,7]
[376390164,1753960268011,-151.0,0.0002649,7]
[376390165,1753960268020,-151.0,0.0002649,7]
[376390166,1753960268029,-151.0,0.0002649,7]
[376390167,1753960268038,-151.0,0.0002649,7]
[376390168,1753960268046,-256.056024,0.0002649,7]
[376390169,1753960268055,-151.0,0.0002649,7]
[376390170,1753960268064,-151.0,0.0002649,7]
[376390171,1753960268073,-151.0,0.0002649,7]
[376390172,1753960268082,-151.0,0.0002649,7]
[376390173,1753960268091,-151.0,0.0002649,7]
[376390174,1753960268100,-193.24336,0.0002649,7]
[376390175,1753960268109,-2192.45,0.00026493,7]
[376390176,1753960268118,-153.0,0.00026493,2]
[376390177,1753960268127,-153.0,0.00026493,2]
[376390178,1753960268136,-153.0,0.00026493,2]
[376390179,1753960268147,-153.0,0.00026493,2]
[376390180,1753960268156,-306.0,0.00026493,2]
[376390181,1753960268165,-153.0,0.00026493,2]
[376390182,1753960268174,-2000.0,0.000265,2]
[376390183,1753960268183,-2000.0,0.000265,2]
[376390184,1753960268191,-151.0,0.00026509,7]
[376390185,1753960268200,-151.0,0.00026519,7]
[376390186,1753960268209,-151.0,0.00026519,7]
[376390187,1753960268218,-151.0,0.00026519,7]
[376390188,1753960268227,-151.0,0.00026519,7]
[376390189,1753960268236,-151.0,0.00026519,7]
[376390190,1753960268245,-162.36876,0.00026519,7]
[376390191,1753960268255,-151.0,0.00026519,7]
[376390192,1753960268266,-151.0,0.00026519,7]
[376390193,1753960268275,-151.0,0.00026519,7]
[376390194,1753960268284,-151.0,0.00026519,7]
[376390195,1753960268293,-151.0,0.00026519,7]
[376390196,1753960268302,-151.0,0.00026519,7]
[376390197,1753960268311,-151.0,0.00026519,7]
[376390198,1753960268320,-151.0,0.00026519,7]
[376390199,1753960268329,-151.0,0.00026519,7]
[376390200,1753960268338,-151.0,0.00026519,7]
[376390201,1753960268347,-285.566584,0.00026519,7]
[376390202,1753960268357,-200.0,0.00026519,30]
[376390203,1753960268366,-200.0,0.00026519,30]
[376390204,1753960268376,-151.0,0.00026519,7]
[376390205,1753960268385,-151.0,0.00026519,7]
[376390206,1753960268394,-151.0,0.00026519,7]
[376390207,1753960268404,-151.0,0.00026519,7]
[376390208,1753960268413,-151.0,0.00026519,7]
[376390209,1753960268423,-153.0,0.00026521,2]
[376390210,1753960268432,-151.0,0.00026523,7]
[376390211,1753960268441,-257.658306,0.00026523,7]
[376390212,1753960268452,-151.0,0.00026523,7]
[376390213,1753960268461,-151.0,0.00026523,7]
[376390214,1753960268471,-151.0,0.00026523,7]
[376390215,1753960268482,-151.0,0.00026523,7]
[376390216,1753960268491,-151.0,0.00026523,7]
[376390217,1753960268500,-151.0,0.00026523,7]
[376390218,1753960268511,-151.0,0.00026523,7]
[376390219,1753960268520,-151.0,0.00026523,7]
[376390220,1753960268530,-151.0,0.00026523,7]
[376390221,1753960268539,-151.0,0.00026523,7]
[376390222,1753960268549,-151.0,0.00026523,7]
[376390223,1753960268558,-151.0,0.00026523,7]
[376390224,1753960268567,-151.0,0.00026523,7]
[376390225,1753960268577,-151.0,0.00026523,7]
[376390226,1753960268587,-151.0,0.00026523,7]
[376390227,1753960268596,-151.0,0.00026523,7]
[376390228,1753960268605,-151.0,0.00026523,7]
[376390229,1753960268614,-151.0,0.00026523,7]
[376390230,1753960268623,-151.0,0.00026523,7]
[376390231,1753960268632,-151.0,0.00026523,7]
[376390232,1753960268640,-245.235804,0.00026523,7]
[376390233,1753960268650,-284.118771,0.00026523,7]
[376390234,1753960268659,-284.118771,0.00026523,7]
[376390235,1753960268668,-284.118771,0.00026523,7]
[376390236,1753960268677,-284.118771,0.00026523,7]
[376390237,1753960268686,-284.118771,0.00026523,7]
[376390238,1753960268695,-284.118771,0.00026523,7]
[376390239,1753960268704,-284.118771,0.00026523,7]
[376390240,1753960268713,-284.118771,0.00026523,7]
[376390241,1753960268723,-284.118771,0.00026523,7]
[376390242,1753960268731,-284.118772,0.00026523,7]
[376390243,1753960268741,-183.0,0.00026533,120]
[376390244,1753960268750,-164.0,0.00026534,120]
[376390245,1753960268760,-380.067796,0.00026536,7]
[376390246,1753960268770,-380.067796,0.00026536,7]
[376390247,1753960268782,-380.067796,0.00026536,7]
[376390248,1753960268794,-380.067796,0.00026536,7]
[376390249,1753960268803,-380.067796,0.00026536,7]
[376390250,1753960268813,-380.067796,0.00026536,7]
[376390251,1753960268823,-380.067796,0.00026536,7]
[376390252,1753960268833,-380.067788,0.00026536,7]
[376390253,1753960268842,-151.0,0.00026536,7]
[376390254,1753960268852,-151.0,0.00026536,7]
[376390255,1753960268862,-151.0,0.00026536,7]
[376390256,1753960268872,-151.0,0.00026536,7]
[376390257,1753960268881,-151.0,0.00026536,7]
[376390258,1753960268891,-206.743266,0.00026536,7]
[376390259,1753960268901,-186.425955,0.00026536,7]
[376390260,1753960268911,-186.425955,0.00026536,7]
[376390261,1753960268921,-186.425955,0.00026536,7]
[376390262,1753960268930,-186.425957,0.00026536,7]
[376390263,1753960268940,-151.0,0.00026536,7]
[376390264,1753960268950,-151.0,0.00026536,7]
[376390265,1753960268959,-402.08,0.00026546,2]
[376390266,1753960268968,-247.36,0.00026552,7]
[376390267,1753960268977,-1431465.70582865,0.00026552,20]
[376390268,1753960269087,5000.0,0.00018778,2]
[376390269,1753960269634,-133.86922463,0.00019178,2]
[376390270,1753960269773,-326.13077537,0.00019178,2]
[376390271,1753960269787,-460.0,0.00019178,2]
[376390272,1753960269797,-460.0,0.00019178,2]
[376390273,1753960269806,-460.0,0.00019178,2]
[376390274,1753960269816,-10991.50539184,0.00019178,2]
[376390275,1753960269880,-53.00327855,0.00019178,2]
[376390276,1753960270020,-460.0,0.00019178,2]
[376390277,1753960270146,-525.50719325,0.00019178,2]
[376390278,1753960270155,-460.0,0.00019178,2]
[376390279,1753960270164,-6242.49280663,0.00019178,2]
[376390280,1753960270407,-0.82167126,0.00019178,2]
[376390281,1753960281468,433.5981484,0.00018457,2]
[376390282,1753960343763,5828.1476997,0.00018315,2]
[376390283,1753960343786,20000.0,0.00018315,2]
[376390284,1753960343820,11928.8910589,0.00018315,2]
[376390286,1753960416718,178.62892034,0.00018406,2]
[376390287,1753960443405,162.0277016,0.00018273,2]
[376390288,1753960450092,4046.479,0.00018728,2]
[376390289,1753960463180,5000.0,0.00018728,2]
[376390290,1753960469673,7097.3989002,0.00018117,2]
[376390292,1753960480125,5000.0,0.00018728,2]
[376390294,1753960495420,5000.0,0.00018728,2]
[376390295,1753960505505,1430.21744503,0.00018511,2]
[376390296,1753960512137,5000.0,0.00018728,2]
[376390297,1753960528832,5000.0,0.00018728,2]
[376390298,1753960545253,5000.0,0.00018728,2]
[376390299,1753960560679,5000.0,0.00018728,2]
[376390300,1753960581237,5000.0,0.00018728,2]
[376390301,1753960599112,5000.0,0.000188,2]
[376390302,1753960615778,5000.0,0.000188,2]
[376390303,1753960631139,5000.0,0.000188,2]
[376390304,1753960647791,5000.0,0.000188,2]
[376390305,1753960664302,5000.0,0.000188,2]
[376390306,1753960680368,5000.0,0.000188,2]
[376390307,1753960696273,5000.0,0.000188,2]
[376390308,1753960713339,5000.0,0.000188,2]
[376390309,1753960728374,150.0,0.000188,2]
[376390310,1753960729894,4850.0,0.000188,2]
[376390311,1753960729917,150.0,0.000188,2]
[376390312,1753960746122,5000.0,0.000188,2]
[376390313,1753960748190,4850.0,0.00017974,2]
[376390314,1753960748213,5150.0,0.00017974,2]
[376390315,1753960761501,4850.0,0.000188,2]
[376390316,1753960761522,150.0,0.000188,2]
[376390317,1753960777537,9850.0,0.00017973,2]
[376390318,1753960777560,10000.0,0.00017973,2]
[376390319,1753960777582,5050.0,0.00017973,2]
[376390320,1753960778009,4950.0,0.000188,2]
[376390321,1753960778035,50.0,0.000188,2]
[376390322,1753960793517,5000.0,0.000188,2]
[376390323,1753960803226,1430.21744503,0.00018511,2]
[376390324,1753960809823,3519.78255497,0.000188,2]
[376390325,1753960809846,1480.21744503,0.000188,2]
[376390326,1753960826563,5000.0,0.000188,2]
[376390327,1753960843491,3519.78255497,0.000188,2]
[376390328,1753960843514,1480.21744503,0.000188,2]
[376390329,1753960857158,881.121509,0.00017973,2]
[376390330,1753960858604,5000.0,0.000188,2]
[376390331,1753960874333,2638.66104597,0.000188,2]
[376390332,1753960874365,2361.33895403,0.000188,2]
[376390333,1753960889845,5000.0,0.000188,2]
[376390334,1753960905279,2638.66104597,0.000188,2]
[376390335,1753960905409,2361.33895403,0.000188,2]
[376390336,1753960922375,5000.0,0.000188,2]
[376390337,1753960938611,2638.66104597,0.000188,2]
[376390338,1753960938635,2361.33895403,0.000188,2]
[376390339,1753960955812,5000.0,0.000188,2]
[376390341,1753960961391,273.905987,0.00013699,2]
[376390342,1753960973116,2364.75505897,0.000188,2]
[376390343,1753960973139,2635.24494103,0.000188,2]
[376390344,1753960991450,5000.0,0.000188,2]
[376390346,1753961006972,2364.75505897,0.000188,2]
[376390347,1753961006995,2635.24494103,0.000188,2]
[376390348,1753961023760,5000.0,0.000188,2]
[376390350,1753961039189,2364.75505897,0.000188,2]
[376390351,1753961039212,2635.24494103,0.000188,2]
[376390352,1753961047235,621.10574217,0.000188,2]
[376390353,1753961055611,5000.0,0.000188,2]
[376390354,1753961072218,1743.6493168,0.000188,2]
[376390355,1753961072241,3256.3506832,0.000188,2]
[376390356,1753961088300,5000.0,0.000188,2]
[376390357,1753961103117,1430.21744503,0.00018511,2]
[376390358,1753961103307,313.43187177,0.00018511,2]
[376390359,1753961103331,1116.78557326,0.00018511,2]
[376390360,1753961104081,5000.0,0.000188,2]
[376390361,1753961119639,3883.21442674,0.000188,2]
[376390362,1753961119669,1116.78557326,0.000188,2]
[376390363,1753961135580,5000.0,0.000188,2]
[376390364,1753961155073,3883.21442674,0.000188,2]
[376390365,1753961155097,1116.78557326,0.000188,2]
[376390367,1753961171721,5000.0,0.000188,2]
[376390368,1753961187687,3883.21442674,0.000188,2]
[376390369,1753961187709,1116.78557326,0.000188,2]
[376390371,1753961203915,5000.0,0.000188,2]
[376390372,1753961219215,184.00282115,0.00018775,2]
[376390373,1753961220062,1067.37315916,0.000188,2]
[376390374,1753961253431,184.00282115,0.00018788,2]
[376390375,1753961269673,2447.83562528,0.00018,2]
[376390376,1753961269696,10000.0,0.00018,2]
[376390377,1753961269720,6998.78266205,0.00018,2]
[376390378,1753961283419,184.00282115,0.000188,2]
[376390384,1753961405415,1430.21744503,0.00018511,2]
[376390437,1753961432794,-265.23792218,0.0001887,2]
[376390438,1753961432804,-556.80172542,0.00018875,2]
[376390439,1753961432850,-1074.74166481,0.00018875,2]
[376390440,1753961432862,-2599.35670136,0.00018875,2]
[376390441,1753961432871,-671.85959491,0.000189,2]
[376390442,1753961432883,-964.29996536,0.000189,2]
[376390443,1753961432892,-1200.0,0.00018969,2]
[376390444,1753961432902,-300.0,0.00018969,2]
[376390446,1753961432911,-300.0,0.00018969,2]
[376390448,1753961432920,-300.0,0.00018969,2]
[376390450,1753961432930,-1200.0,0.0001897,2]
[376390453,1753961432939,-539.4923896,0.00018973,2]
[376390456,1753961432949,-319.84065441,0.00018973,2]
[376390458,1753961432960,-180.15934559,0.00018973,2]
[376390459,1753961432970,-500.0,0.00018973,2]
[376390460,1753961432980,-500.0,0.00018974,2]
[376390461,1753961432989,-500.0,0.00018974,2]
[376390462,1753961433003,-511.9808262,0.00018974,2]
[376390463,1753961433017,-500.0,0.00018974,2]
[376390464,1753961433032,-500.0,0.00018974,2]
[376390465,1753961433046,-500.0,0.00018974,2]
[376390466,1753961433059,-500.0,0.00018974,2]
[376390467,1753961433071,-429.36996686,0.00018974,2]
[376390468,1753961433085,-500.0,0.00018974,2]
[376390469,1753961433098,-500.0,0.00018974,2]
[376390470,1753961433113,-500.0,0.00018974,2]
[376390471,1753961433128,-500.0,0.00018974,2]
[376390472,1753961433144,-500.0,0.00018974,2]
[376390473,1753961433160,-251.88549178,0.00018974,2]
[376390490,1753961439168,-393.3130032,0.00018974,2]
[376390491,1753961439179,-500.0,0.00018974,2]
[376390492,1753961439191,-239.17076288,0.00018974,2]
[376390493,1753961439203,-609.64198845,0.00018974,2]
[376390494,1753961439214,-472.63013179,0.00018974,2]
[376390496,1753961439225,-500.0,0.00018974,2]
[376390497,1753961439236,-500.0,0.00018974,2]
[376390498,1753961439247,-500.0,0.00018974,2]
[376390499,1753961439259,-500.0,0.00018974,2]
[376390500,1753961439269,-50776.24624782,0.00018975,2]
[376390507,1753961440661,-500.0,0.00018975,2]
[376390517,1753961443570,-2213.58994238,0.000189,2]
[376390518,1753961443579,-573.57751734,0.00018975,2]
[376390519,1753961443589,-108723.75375218,0.00018975,2]
[376390521,1753961443598,-2862.00984713,0.00019,2]
[376390523,1753961443608,-6332.31,0.00019001,2]
[376390524,1753961443617,-4393.61843498,0.00019078,2]
[376390525,1753961443626,-202.15443124,0.00019173,2]
[376390526,1753961443635,-500.7810748,0.00019173,2]
[376390527,1753961443645,-501.18255358,0.00019173,2]
[376390528,1753961443654,-501.3598288,0.00019173,2]
[376390529,1753961443665,-500.45459786,0.00019173,2]
[376390530,1753961443675,-500.0,0.00019173,2]
[376390531,1753961443684,-500.0,0.00019173,2]
[376390532,1753961443703,-500.0,0.00019173,2]
[376390533,1753961443715,-638.40224091,0.00019173,2]
[376390534,1753961443726,-32712.99852298,0.00019173,2]
[376390535,1753961443735,-155.0,0.00019177,2]
[376390538,1753961443745,-415.14236157,0.00019177,2]
[376390541,1753961443756,-1268.94565719,0.00019177,2]
[376390543,1753961443766,-1268.94565719,0.00019177,2]
[376390544,1753961443775,-1268.94565719,0.00019177,2]
[376390545,1753961443786,-1268.94565719,0.00019177,2]
[376390546,1753961443796,-1268.94565719,0.00019177,2]
[376390547,1753961443805,-1268.94565719,0.00019177,2]
[376390548,1753961443815,-1268.94565719,0.00019177,2]
[376390549,1753961443825,-1268.94565719,0.00019177,2]
[376390550,1753961443835,-1268.94565719,0.00019177,2]
[376390551,1753961443845,-1268.94565719,0.00019177,2]
[376390552,1753961443855,-1268.94565719,0.00019177,2]
[376390553,1753961443864,-1268.94565719,0.00019177,2]
[376390554,1753961443874,-1268.94565719,0.00019177,2]
[376390555,1753961443885,-1268.94565719,0.00019177,2]
[376390556,1753961443894,-1268.94565719,0.00019177,2]
[376390557,1753961443904,-1268.94565719,0.00019177,2]
[376390558,1753961443915,-1268.94565719,0.00019177,2]
[376390559,1753961443925,-1268.94565719,0.00019177,2]
[376390560,1753961443935,-1332.39294005,0.00019177,2]
[376390561,1753961443945,-1332.39294005,0.00019177,2]
[376390562,1753961443955,-1332.39294005,0.00019177,2]
[376390563,1753961443966,-1332.39294005,0.00019177,2]
[376390564,1753961443975,-1332.39294005,0.00019177,2]
[376390565,1753961443986,-1332.39294005,0.00019177,2]
[376390566,1753961443996,-1332.39294005,0.00019177,2]
[376390567,1753961444007,-1332.39294005,0.00019177,2]
[376390568,1753961444017,-1332.39294005,0.00019177,2]
[376390569,1753961444026,-460.0,0.00019178,2]
[376390570,1753961444036,-460.0,0.00019178,2]
[376390571,1753961444047,-460.0,0.00019178,2]
[376390572,1753961444057,-436.06167608,0.00019178,2]
[376390573,1753961444067,-203.88558554,0.00019178,2]
[376390574,1753961444076,-460.0,0.00019178,2]
[376390575,1753961444087,-460.0,0.00019178,2]
[376390576,1753961444097,-460.0,0.00019178,2]
[376390577,1753961444107,-460.0,0.00019178,2]
[376390578,1753961444117,-460.0,0.00019178,2]
[376390579,1753961444127,-460.0,0.00019178,2]
[376390580,1753961444137,-460.0,0.00019178,2]
[376390581,1753961444147,-460.0,0.00019178,2]
[376390582,1753961444157,-460.0,0.00019178,2]
[376390583,1753961444169,-460.0,0.00019178,2]
[376390584,1753961444179,-481.04634767,0.00019178,2]
[376390585,1753961444188,-460.0,0.00019178,2]
[376390586,1753961444198,-460.0,0.00019178,2]
[376390587,1753961444209,-460.0,0.00019178,2]
[376390588,1753961444218,-460.0,0.00019178,2]
[376390589,1753961444229,-460.0,0.00019178,2]
[376390590,1753961444239,-460.0,0.00019178,2]
[376390591,1753961444248,-460.0,0.00019178,2]
[376390592,1753961444258,-460.0,0.00019178,2]
[376390593,1753961444267,-460.0,0.00019178,2]
[376390594,1753961444276,-460.0,0.00019178,2]
[376390595,1753961444286,-460.0,0.00019178,2]
[376390596,1753961444295,-460.0,0.00019178,2]
[376390597,1753961444304,-460.0,0.00019178,2]
[376390598,1753961444315,-460.0,0.00019178,2]
[376390599,1753961444324,-460.0,0.00019178,2]
[376390600,1753961444336,-460.0,0.00019178,2]
[376390601,1753961444346,-460.0,0.00019178,2]
[376390602,1753961444355,-460.0,0.00019178,2]
[376390603,1753961444364,-460.0,0.00019178,2]
[376390604,1753961444373,-460.0,0.00019178,2]
[376390605,1753961444383,-318.23189879,0.00019178,2]
[376390606,1753961444392,-460.0,0.00019178,2]
[376390607,1753961444401,-460.0,0.00019178,2]
[376390608,1753961444410,-460.0,0.00019178,2]
[376390609,1753961444419,-591.10787954,0.00019178,2]
[376390610,1753961444429,-460.0,0.00019178,2]
[376390611,1753961444438,-460.0,0.00019178,2]
[376390612,1753961444447,-463.62655097,0.00019178,2]
[376390613,1753961444456,-460.0,0.00019178,2]
[376390614,1753961444466,-460.0,0.00019178,2]
[376390615,1753961444476,-460.0,0.00019178,2]
[376390616,1753961444485,-460.0,0.00019178,2]
[376390617,1753961444495,-460.0,0.00019178,2]
[376390618,1753961444505,-460.0,0.00019178,2]
[376390619,1753961444515,-460.0,0.00019178,2]
[376390620,1753961444525,-460.0,0.00019178,2]
[376390621,1753961444536,-460.0,0.00019178,2]
[376390622,1753961444546,-460.0,0.00019178,2]
[376390623,1753961444556,-460.0,0.00019178,2]
[376390624,1753961444565,-460.0,0.00019178,2]
[376390625,1753961444574,-460.0,0.00019178,2]
[376390626,1753961444584,-460.0,0.00019178,2]
[376390627,1753961444594,-460.0,0.00019178,2]
[376390628,1753961444603,-261.72744388,0.00019178,2]
[376390629,1753961444613,-460.0,0.00019178,2]
[376390630,1753961444622,-460.0,0.00019178,2]
[376390631,1753961444632,-460.0,0.00019178,2]
[376390632,1753961444641,-460.0,0.00019178,2]
[376390633,1753961444651,-387.43101359,0.00019178,2]
[376390634,1753961444661,-460.0,0.00019178,2]
[376390635,1753961444670,-263.21469156,0.00019178,2]
[376390636,1753961444679,-460.0,0.00019178,2]
[376390637,1753961444688,-460.0,0.00019178,2]
[376390638,1753961444698,-460.0,0.00019178,2]
[376390639,1753961444707,-460.0,0.00019178,2]
[376390640,1753961444717,-460.0,0.00019178,2]
[376390641,1753961444726,-460.0,0.00019178,2]
[376390642,1753961444736,-460.0,0.00019178,2]
[376390643,1753961444746,-460.0,0.00019178,2]
[376390644,1753961444756,-460.0,0.00019178,2]
[376390645,1753961444766,-460.0,0.00019178,2]
[376390646,1753961444776,-460.0,0.00019178,2]
[376390647,1753961444785,-460.0,0.00019178,2]
[376390648,1753961444797,-460.0,0.00019178,2]
[376390649,1753961444806,-460.0,0.00019178,2]
[376390650,1753961444816,-460.0,0.00019178,2]
[376390651,1753961444826,-460.0,0.00019178,2]
[376390652,1753961444835,-460.0,0.00019178,2]
[376390653,1753961444844,-460.0,0.00019178,2]
[376390654,1753961444853,-460.0,0.00019178,2]
[376390655,1753961444863,-460.0,0.00019178,2]
[376390656,1753961444872,-460.0,0.00019178,2]
[376390657,1753961444881,-460.0,0.00019178,2]
[376390658,1753961444890,-460.0,0.00019178,2]
[376390659,1753961444900,-460.0,0.00019178,2]
[376390660,1753961444909,-460.0,0.00019178,2]
[376390661,1753961444919,-460.0,0.00019178,2]
[376390662,1753961444928,-460.0,0.00019178,2]
[376390663,1753961444938,-460.0,0.00019178,2]
[376390664,1753961444947,-460.0,0.00019178,2]
[376390665,1753961444957,-464.44006237,0.00019178,2]
[376390666,1753961444966,-460.0,0.00019178,2]
[376390667,1753961444975,-460.0,0.00019178,2]
[376390668,1753961444984,-460.0,0.00019178,2]
[376390669,1753961444994,-460.0,0.00019178,2]
[376390670,1753961445004,-460.0,0.00019178,2]
[376390671,1753961445014,-352.09892708,0.00019178,2]
[376390672,1753961445024,-460.0,0.00019178,2]
[376390673,1753961445033,-460.0,0.00019178,2]
[376390674,1753961445043,-460.0,0.00019178,2]
[376390675,1753961445053,-460.0,0.00019178,2]
[376390676,1753961445063,-460.0,0.00019178,2]
[376390677,1753961445072,-460.0,0.00019178,2]
[376390678,1753961445081,-460.0,0.00019178,2]
[376390679,1753961445091,-460.0,0.00019178,2]
[376390680,1753961445100,-460.0,0.00019178,2]
[376390681,1753961445110,-460.0,0.00019178,2]
[376390682,1753961445119,-460.0,0.00019178,2]
[376390683,1753961445129,-460.0,0.00019178,2]
[376390684,1753961445139,-460.0,0.00019178,2]
[376390685,1753961445149,-460.0,0.00019178,2]
[376390686,1753961445159,-460.0,0.00019178,2]
[376390687,1753961445170,-460.0,0.00019178,2]
[376390688,1753961445180,-460.0,0.00019178,2]
[376390689,1753961445190,-460.0,0.00019178,2]
[376390690,1753961445200,-460.0,0.00019178,2]
[376390691,1753961445210,-460.0,0.00019178,2]
[376390692,1753961445220,-460.0,0.00019178,2]
[376390693,1753961445229,-517.54,0.00019178,2]
[376390694,1753961445241,-460.0,0.00019178,2]
[376390695,1753961445253,-460.0,0.00019178,2]
[376390696,1753961445262,-460.0,0.00019178,2]
[376390697,1753961445272,-460.0,0.00019178,2]